[Event "Live Chess"]
[Site "Chess.com"]
[Date "2024.06.01"]
[Round "-"]
[White "Enhard"]
[Black "Ksenia_2013"]
[Result "1-0"]
[WhiteElo "1413"]
[BlackElo "780"]
[TimeControl "300"]
[EndTime "10:24:55 PDT"]
[Termination "Enhard won by checkmate"]

1. d4 {[%clk 0:04:57.8]} 1... d5 {[%clk 0:04:57.8]} 2. c4 {[%clk 0:04:52.5]}
2... Nc6 {[%clk 0:04:57.7]} 3. e3 {[%clk 0:04:47.6]} 3... dxc4 {[%clk
0:04:57.6]} 4. Bxc4 {[%clk 0:04:45.7]} 4... Na5 {[%clk 0:04:51.6]} 5. Be2 {[%clk
0:04:39]} 5... Nf6 {[%clk 0:04:48.5]} 6. Nf3 {[%clk 0:04:37.6]} 6... Ne4 {[%clk
0:04:46.5]} 7. Nbd2 {[%clk 0:04:36.4]} 7... Nxd2 {[%clk 0:04:41.9]} 8. Bxd2
{[%clk 0:04:35.3]} 8... Nc6 {[%clk 0:04:38.4]} 9. O-O {[%clk 0:04:32.6]} 9... e5
{[%clk 0:04:35]} 10. Bc3 {[%clk 0:04:28.2]} 10... Qf6 {[%clk 0:04:31.3]} 11.
dxe5 {[%clk 0:04:26.1]} 11... Qg6 {[%clk 0:04:29.6]} 12. Nh4 {[%clk 0:04:17.3]}
12... Qg5 {[%clk 0:04:26.9]} 13. g3 {[%clk 0:04:15.2]} 13... Qxe5 {[%clk
0:04:19.6]} 14. Bxe5 {[%clk 0:04:13.6]} 14... Nxe5 {[%clk 0:04:15.3]} 15. Qa4+
{[%clk 0:03:58.9]} 15... Bd7 {[%clk 0:04:12.1]} 16. Qe4 {[%clk 0:03:57.1]} 16...
Bd6 {[%clk 0:04:08.5]} 17. Qxb7 {[%clk 0:03:53.7]} 17... O-O {[%clk 0:04:06]}
18. Qb3 {[%clk 0:03:18.2]} 18... Rab8 {[%clk 0:03:58.2]} 19. Qc3 {[%clk
0:03:16.2]} 19... Bb4 {[%clk 0:03:41.9]} 20. Qxe5 {[%clk 0:03:13.7]} 20... Rfe8
{[%clk 0:03:35.9]} 21. Qd4 {[%clk 0:03:09.8]} 21... c5 {[%clk 0:03:25.1]} 22.
Qxd7 {[%clk 0:03:07.9]} 22... Red8 {[%clk 0:03:22]} 23. Qg4 {[%clk 0:03:06.4]}
23... h5 {[%clk 0:03:10.4]} 24. Qg5 {[%clk 0:03:00.1]} 24... f6 {[%clk
0:03:03.3]} 25. Qg6 {[%clk 0:02:58.5]} 25... c4 {[%clk 0:03:01]} 26. Nf5 {[%clk
0:02:57.2]} 26... Rd7 {[%clk 0:02:57.3]} 27. Bxc4+ {[%clk 0:02:54.2]} 27... Kh8
{[%clk 0:02:54.9]} 28. Qxh5# {[%clk 0:02:51]} 1-0

[Event "Live Chess"]
[Site "Chess.com"]
[Date "2024.06.01"]
[Round "-"]
[White "lyricalschemes"]
[Black "Dhaydon19"]
[Result "1/2-1/2"]
[WhiteElo "2298"]
[BlackElo "2681"]
[TimeControl "300"]
[EndTime "10:25:00 PDT"]
[Termination "Game drawn by repetition"]

1. e4 {[%clk 0:04:58.9]} 1... b6 {[%clk 0:04:59.2]} 2. Nc3 {[%clk 0:04:56.4]}
2... Bb7 {[%clk 0:04:58.9]} 3. d4 {[%clk 0:04:53.8]} 3... e6 {[%clk 0:04:58.2]}
4. Bd3 {[%clk 0:04:51.9]} 4... Bb4 {[%clk 0:04:56.9]} 5. Ne2 {[%clk 0:04:48.2]}
5... c5 {[%clk 0:04:54.9]} 6. dxc5 {[%clk 0:04:44.7]} 6... bxc5 {[%clk
0:04:51.3]} 7. O-O {[%clk 0:04:42.2]} 7... Ne7 {[%clk 0:04:47.9]} 8. a3 {[%clk
0:04:40.9]} 8... Ba5 {[%clk 0:04:46.2]} 9. Ng3 {[%clk 0:04:28.6]} 9... O-O
{[%clk 0:04:42.9]} 10. e5 {[%clk 0:04:22.2]} 10... Ng6 {[%clk 0:04:39.3]} 11.
Re1 {[%clk 0:04:10.4]} 11... Nc6 {[%clk 0:04:35.7]} 12. Bxg6 {[%clk 0:04:03.7]}
12... fxg6 {[%clk 0:04:33.3]} 13. Qd6 {[%clk 0:03:55.5]} 13... Qe7 {[%clk
0:04:31.4]} 14. Be3 {[%clk 0:03:49.2]} 14... Qxd6 {[%clk 0:04:28]} 15. exd6
{[%clk 0:03:48.5]} 15... Nd4 {[%clk 0:04:27.7]} 16. Rac1 {[%clk 0:03:39.5]}
16... Rac8 {[%clk 0:04:23]} 17. Red1 {[%clk 0:03:22]} 17... Nf5 {[%clk
0:04:19.2]} 18. Nxf5 {[%clk 0:03:06.1]} 18... Rxf5 {[%clk 0:04:16.5]} 19. Nb5
{[%clk 0:02:55.7]} 19... Bb6 {[%clk 0:04:15.5]} 20. c4 {[%clk 0:02:50.3]} 20...
Bc6 {[%clk 0:04:09.7]} 21. Nc3 {[%clk 0:02:42.6]} 21... h6 {[%clk 0:04:04.9]}
22. b4 {[%clk 0:02:27.1]} 22... cxb4 {[%clk 0:04:03.1]} 23. axb4 {[%clk
0:02:23.2]} 23... Bxe3 {[%clk 0:04:02.2]} 24. fxe3 {[%clk 0:02:22.2]} 24... Rcf8
{[%clk 0:03:58.7]} 25. Rd2 {[%clk 0:02:14.9]} 25... a6 {[%clk 0:03:55.6]} 26. h3
{[%clk 0:02:05.8]} 26... Rb8 {[%clk 0:03:53.4]} 27. Rb2 {[%clk 0:01:48.5]} 27...
Re5 {[%clk 0:03:51]} 28. Kf2 {[%clk 0:01:45.6]} 28... Rf8+ {[%clk 0:03:49.5]}
29. Kg1 {[%clk 0:01:33.8]} 29... Rxe3 {[%clk 0:03:48.1]} 30. b5 {[%clk
0:01:30.8]} 30... axb5 {[%clk 0:03:47.1]} 31. cxb5 {[%clk 0:01:30]} 31... Bb7
{[%clk 0:03:40.4]} 32. Na4 {[%clk 0:01:28.1]} 32... Rb8 {[%clk 0:03:02.1]} 33.
Nc5 {[%clk 0:01:26]} 33... Ba8 {[%clk 0:02:37.5]} 34. Nxd7 {[%clk 0:01:24.5]}
34... Rd8 {[%clk 0:02:36.4]} 35. Nb6 {[%clk 0:01:13]} 35... Be4 {[%clk
0:02:32.2]} 36. d7 {[%clk 0:01:08.3]} 36... Kf8 {[%clk 0:02:27.6]} 37. Rc8
{[%clk 0:01:05]} 37... Ke7 {[%clk 0:02:26.7]} 38. Rxd8 {[%clk 0:00:59.9]} 38...
Kxd8 {[%clk 0:02:25.5]} 39. Rf2 {[%clk 0:00:42.7]} 39... Rd3 {[%clk 0:02:18.3]}
40. Rf8+ {[%clk 0:00:39.7]} 40... Kc7 {[%clk 0:02:17.2]} 41. Rc8+ {[%clk
0:00:35.6]} 41... Kb7 {[%clk 0:02:16.4]} 42. d8=Q {[%clk 0:00:30.7]} 42... Rxd8
{[%clk 0:02:15.5]} 43. Rxd8 {[%clk 0:00:30.6]} 43... Kxb6 {[%clk 0:02:14.8]} 44.
Rg8 {[%clk 0:00:30.1]} 44... Kxb5 {[%clk 0:02:13]} 45. Rxg7 {[%clk 0:00:29.7]}
45... h5 {[%clk 0:02:11.5]} 46. Kf2 {[%clk 0:00:29.6]} 46... Kc4 {[%clk
0:02:10]} 47. g4 {[%clk 0:00:29.1]} 47... hxg4 {[%clk 0:02:07.6]} 48. hxg4
{[%clk 0:00:29]} 48... Kd4 {[%clk 0:02:07.1]} 49. Kg3 {[%clk 0:00:27.5]} 49...
e5 {[%clk 0:02:05.8]} 50. Re7 {[%clk 0:00:26.2]} 50... Bd3 {[%clk 0:02:03.6]}
51. Kh4 {[%clk 0:00:24.6]} 51... e4 {[%clk 0:02:01.2]} 52. Kg3 {[%clk
0:00:24.1]} 52... e3 {[%clk 0:01:53.6]} 53. Kf3 {[%clk 0:00:20.9]} 53... e2
{[%clk 0:01:52.6]} 54. Rxe2 {[%clk 0:00:19.9]} 54... Bxe2+ {[%clk 0:01:50.7]}
55. Kxe2 {[%clk 0:00:19.8]} 55... Ke4 {[%clk 0:01:50.4]} 56. Ke1 {[%clk
0:00:17]} 56... g5 {[%clk 0:01:47.2]} 57. Ke2 {[%clk 0:00:15.6]} 57... Kf4
{[%clk 0:01:44.8]} 58. Kf2 {[%clk 0:00:15.1]} 58... Ke4 {[%clk 0:01:41.9]} 59.
Ke2 {[%clk 0:00:14.4]} 59... Kf4 {[%clk 0:01:41.3]} 60. Kf2 {[%clk 0:00:14]}
60... Kxg4 {[%clk 0:01:41.1]} 61. Kg2 {[%clk 0:00:13.6]} 61... Kf4 {[%clk
0:01:40.8]} 62. Kf2 {[%clk 0:00:13.2]} 62... g4 {[%clk 0:01:39.9]} 63. Kg2
{[%clk 0:00:12.3]} 63... Kf5 {[%clk 0:01:39.8]} 64. Kg3 {[%clk 0:00:11.7]} 64...
Kg5 {[%clk 0:01:39.7]} 65. Kg2 {[%clk 0:00:11.4]} 65... Kh4 {[%clk 0:01:39.4]}
66. Kh2 {[%clk 0:00:11.1]} 66... Kh5 {[%clk 0:01:39]} 67. Kg3 {[%clk 0:00:10.6]}
67... Kg5 {[%clk 0:01:38.6]} 68. Kg2 {[%clk 0:00:10.3]} 68... Kf4 {[%clk
0:01:38.5]} 69. Kf2 {[%clk 0:00:09.8]} 69... Kf5 {[%clk 0:01:38.3]} 70. Kg3
{[%clk 0:00:09.4]} 70... Kg5 {[%clk 0:01:37.9]} 1/2-1/2

[Event "Live Chess"]
[Site "Chess.com"]
[Date "2024.06.01"]
[Round "-"]
[White "WilliamofOrange16th"]
[Black "Crowded_House"]
[Result "0-1"]
[WhiteElo "1949"]
[BlackElo "1751"]
[TimeControl "300"]
[EndTime "10:25:05 PDT"]
[Termination "Crowded_House won on time"]

1. e4 {[%clk 0:04:54.4]} 1... e6 {[%clk 0:04:59]} 2. f4 {[%clk 0:04:52.3]} 2...
d5 {[%clk 0:04:57.4]} 3. e5 {[%clk 0:04:51.7]} 3... c5 {[%clk 0:04:55.6]} 4. c3
{[%clk 0:04:49.7]} 4... Nc6 {[%clk 0:04:54.6]} 5. Nf3 {[%clk 0:04:49.3]} 5...
Qb6 {[%clk 0:04:53.2]} 6. Na3 {[%clk 0:04:47.9]} 6... a6 {[%clk 0:04:50.8]} 7.
Nc2 {[%clk 0:04:47]} 7... Nge7 {[%clk 0:04:47.4]} 8. Be2 {[%clk 0:04:45]} 8...
Ng6 {[%clk 0:04:46.5]} 9. d4 {[%clk 0:04:42.7]} 9... Bd7 {[%clk 0:04:42.5]} 10.
O-O {[%clk 0:04:41.1]} 10... Be7 {[%clk 0:04:34]} 11. Kh1 {[%clk 0:04:38.5]}
11... O-O {[%clk 0:04:32.3]} 12. a3 {[%clk 0:04:35.2]} 12... Rfc8 {[%clk
0:04:28]} 13. b4 {[%clk 0:04:33.6]} 13... cxd4 {[%clk 0:04:26.5]} 14. cxd4
{[%clk 0:04:32.6]} 14... Na7 {[%clk 0:04:23.5]} 15. Bd2 {[%clk 0:03:47.1]} 15...
Bb5 {[%clk 0:04:20.3]} 16. Ne3 {[%clk 0:03:43.1]} 16... Bxe2 {[%clk 0:04:18.8]}
17. Qxe2 {[%clk 0:03:42.3]} 17... Nxf4 {[%clk 0:04:15.8]} 18. Qf2 {[%clk
0:03:40.3]} 18... Ng6 {[%clk 0:04:07.6]} 19. h4 {[%clk 0:03:38.3]} 19... Nb5
{[%clk 0:03:48.6]} 20. Ng4 {[%clk 0:03:25.3]} 20... Rc2 {[%clk 0:03:35.6]} 21.
g3 {[%clk 0:03:11.7]} 21... Rac8 {[%clk 0:03:25.3]} 22. h5 {[%clk 0:03:10.4]}
22... Nh8 {[%clk 0:03:19.2]} 23. Qe3 {[%clk 0:03:01.7]} 23... Qc6 {[%clk
0:02:51.2]} 24. h6 {[%clk 0:02:58.1]} 24... Nc3 {[%clk 0:02:28.1]} 25. hxg7
{[%clk 0:02:51.8]} 25... Ne4 {[%clk 0:02:24.5]} 26. gxh8=Q+ {[%clk 0:02:48.5]}
26... Kxh8 {[%clk 0:02:21.8]} 27. Rg1 {[%clk 0:02:38.8]} 27... Rg8 {[%clk
0:01:58.4]} 28. Nf6 {[%clk 0:02:19.7]} 28... Bxf6 {[%clk 0:01:50.6]} 29. exf6
{[%clk 0:02:17.8]} 29... Nxf6 {[%clk 0:01:49.2]} 30. Ng5 {[%clk 0:02:01.4]}
30... Rg7 {[%clk 0:01:33.1]} 31. Raf1 {[%clk 0:01:47.2]} 31... Kg8 {[%clk
0:01:21.6]} 32. Rxf6 {[%clk 0:01:38.4]} 32... Qd6 {[%clk 0:01:03.2]} 33. Kh2
{[%clk 0:00:42.1]} 33... Qe7 {[%clk 0:00:54.9]} 34. Rgf1 {[%clk 0:00:39.8]}
34... Rc7 {[%clk 0:00:51.8]} 35. Kh3 {[%clk 0:00:38.3]} 35... Qd6 {[%clk
0:00:44.7]} 36. Qf4 {[%clk 0:00:37.1]} 36... Qxf4 {[%clk 0:00:43]} 37. Bxf4
{[%clk 0:00:37]} 37... Rd7 {[%clk 0:00:40.5]} 38. Nf3 {[%clk 0:00:36]} 38... Rg6
{[%clk 0:00:37.8]} 39. Rxg6+ {[%clk 0:00:35]} 39... hxg6 {[%clk 0:00:36.8]} 40.
Ne5 {[%clk 0:00:34.9]} 40... Re7 {[%clk 0:00:35.3]} 41. Bg5 {[%clk 0:00:34]}
41... Re8 {[%clk 0:00:33.5]} 42. Rxf7 {[%clk 0:00:32.4]} 42... Rc8 {[%clk
0:00:31.2]} 43. Bf6 {[%clk 0:00:30.6]} 43... Rc3 {[%clk 0:00:28.7]} 44. Rg7+
{[%clk 0:00:28.2]} 44... Kf8 {[%clk 0:00:27.3]} 45. Nxg6+ {[%clk 0:00:26.1]}
45... Ke8 {[%clk 0:00:25.8]} 46. Re7+ {[%clk 0:00:25.4]} 46... Kd8 {[%clk
0:00:24.9]} 47. Rxb7+ {[%clk 0:00:23.2]} 47... Kc8 {[%clk 0:00:21.2]} 48. Rb6
{[%clk 0:00:21.4]} 48... Rxa3 {[%clk 0:00:19.6]} 49. Rxe6 {[%clk 0:00:19.6]}
49... Ra4 {[%clk 0:00:18.6]} 50. Rb6 {[%clk 0:00:18.2]} 50... Kc7 {[%clk
0:00:17.7]} 51. Re6 {[%clk 0:00:12]} 51... Rxb4 {[%clk 0:00:16.3]} 52. Be5+
{[%clk 0:00:11.5]} 52... Kd7 {[%clk 0:00:14.9]} 53. Rd6+ {[%clk 0:00:11.1]}
53... Kc8 {[%clk 0:00:13.3]} 54. Rxa6 {[%clk 0:00:06.9]} 54... Rb7 {[%clk
0:00:11.4]} 55. Nf4 {[%clk 0:00:05]} 55... Rh7+ {[%clk 0:00:10.2]} 56. Kg4
{[%clk 0:00:03.9]} 56... Rh8 {[%clk 0:00:09.4]} 57. Kf3 {[%clk 0:00:03.8]} 57...
Rg8 {[%clk 0:00:08.9]} 58. Ra8+ {[%clk 0:00:03.2]} 58... Kd7 {[%clk 0:00:07.4]}
59. Rxg8 {[%clk 0:00:03.1]} 59... Ke7 {[%clk 0:00:06.9]} 60. Rg6 {[%clk
0:00:03]} 60... Kf7 {[%clk 0:00:06.4]} 61. Rf6+ {[%clk 0:00:02.5]} 61... Ke8
{[%clk 0:00:06.1]} 62. Ng6 {[%clk 0:00:01.2]} 62... Kd7 {[%clk 0:00:05.7]} 63.
Rd6+ {[%clk 0:00:00.5]} 63... Kc7 {[%clk 0:00:05.1]} 64. g4 {[%clk 0:00:00.4]}
64... Kb7 {[%clk 0:00:04.7]} 65. g5 {[%clk 0:00:00.3]} 65... Ka7 {[%clk
0:00:04.2]} 66. Ne7 {[%clk 0:00:00.2]} 66... Kb7 {[%clk 0:00:03.9]} 0-1

[Event "Live Chess"]
[Site "Chess.com"]
[Date "2024.06.01"]
[Round "-"]
[White "SvitlanaJ"]
[Black "MellowAesthetic"]
[Result "0-1"]
[WhiteElo "593"]
[BlackElo "2067"]
[TimeControl "300"]
[EndTime "10:25:06 PDT"]
[Termination "MellowAesthetic won on time"]

1. e4 {[%clk 0:04:57.4]} 1... c5 {[%clk 0:04:58.8]} 2. d4 {[%clk 0:04:55.2]}
2... cxd4 {[%clk 0:04:57.9]} 3. Qxd4 {[%clk 0:04:53.8]} 3... Nc6 {[%clk
0:04:56.1]} 4. Qe3 {[%clk 0:04:52.1]} 4... g6 {[%clk 0:04:54.9]} 5. Nc3 {[%clk
0:04:42.2]} 5... Bg7 {[%clk 0:04:54.2]} 6. Nf3 {[%clk 0:04:31.4]} 6... Nf6
{[%clk 0:04:53.3]} 7. Bb5 {[%clk 0:04:24]} 7... O-O {[%clk 0:04:52]} 8. Bc4
{[%clk 0:04:19.9]} 8... d6 {[%clk 0:04:47.3]} 9. O-O {[%clk 0:04:14.7]} 9... Bg4
{[%clk 0:04:46.1]} 10. Bd2 {[%clk 0:04:07.9]} 10... Bxf3 {[%clk 0:04:44.1]} 11.
Qxf3 {[%clk 0:04:03.4]} 11... Ne5 {[%clk 0:04:43.2]} 12. Qe2 {[%clk 0:03:49.3]}
12... Nxc4 {[%clk 0:04:42.2]} 13. Qxc4 {[%clk 0:03:46.3]} 13... Rc8 {[%clk
0:04:41.8]} 14. Qe2 {[%clk 0:03:41.2]} 14... Qb6 {[%clk 0:04:38.2]} 15. Be3
{[%clk 0:03:38.1]} 15... Qxb2 {[%clk 0:04:36.2]} 16. Nd5 {[%clk 0:03:28.7]}
16... Nxd5 {[%clk 0:04:33.7]} 17. exd5 {[%clk 0:03:27]} 17... Rxc2 {[%clk
0:04:32.6]} 18. Qd3 {[%clk 0:03:15.2]} 18... b6 {[%clk 0:04:26.7]} 19. Bd4
{[%clk 0:03:01.1]} 19... Bxd4 {[%clk 0:04:24.2]} 20. Qe4 {[%clk 0:02:40.6]}
20... Rxf2 {[%clk 0:04:20.2]} 21. Kh1 {[%clk 0:02:09.1]} 21... Re2 {[%clk
0:04:08.2]} 22. Qf3 {[%clk 0:01:54.9]} 22... Bf6 {[%clk 0:03:49.6]} 23. Rae1
{[%clk 0:01:34.4]} 23... Rxe1 {[%clk 0:03:47.7]} 24. Rxe1 {[%clk 0:01:32.4]}
24... Rc8 {[%clk 0:03:47.1]} 25. Qg4 {[%clk 0:01:13.3]} 25... Rc1 {[%clk
0:03:43.9]} 26. Qe4 {[%clk 0:01:04]} 26... Rxe1+ {[%clk 0:03:41.8]} 27. Qxe1
{[%clk 0:01:02.2]} 27... Qa1 {[%clk 0:03:41.4]} 28. Qxa1 {[%clk 0:00:56.1]}
28... Bxa1 {[%clk 0:03:41.3]} 29. g4 {[%clk 0:00:51.7]} 29... Kg7 {[%clk
0:03:41.2]} 30. h4 {[%clk 0:00:50]} 30... Kf6 {[%clk 0:03:41.1]} 31. a4 {[%clk
0:00:45.4]} 31... Ke5 {[%clk 0:03:41]} 32. Kg2 {[%clk 0:00:43.3]} 32... Kxd5
{[%clk 0:03:40.1]} 33. Kf3 {[%clk 0:00:42.1]} 33... e5 {[%clk 0:03:39]} 34. h5
{[%clk 0:00:37]} 34... f5 {[%clk 0:03:37.8]} 35. g5 {[%clk 0:00:29.1]} 35... e4+
{[%clk 0:03:35.9]} 36. Ke3 {[%clk 0:00:26.6]} 36... Ke5 {[%clk 0:03:33.2]} 37.
h6 {[%clk 0:00:22.3]} 37... d5 {[%clk 0:03:31.5]} 38. Ke2 {[%clk 0:00:16.5]}
38... d4 {[%clk 0:03:30.8]} 39. a5 {[%clk 0:00:08.8]} 39... d3+ {[%clk
0:03:29.6]} 40. Ke3 {[%clk 0:00:03.3]} 40... f4+ {[%clk 0:03:28.8]} 41. Kd2
{[%clk 0:00:01.6]} 41... Kd4 {[%clk 0:03:28.1]} 0-1

[Event "Live Chess"]
[Site "Chess.com"]
[Date "2024.06.01"]
[Round "-"]
[White "powerchs"]
[Black "McFim"]
[Result "0-1"]
[WhiteElo "1254"]
[BlackElo "1589"]
[TimeControl "300"]
[EndTime "10:25:08 PDT"]
[Termination "McFim won on time"]

1. e4 {[%clk 0:04:52.9]} 1... c6 {[%clk 0:04:59]} 2. Nf3 {[%clk 0:04:50.5]} 2...
d5 {[%clk 0:04:58.4]} 3. exd5 {[%clk 0:04:48.3]} 3... cxd5 {[%clk 0:04:57.8]} 4.
d4 {[%clk 0:04:47.1]} 4... Nc6 {[%clk 0:04:55.2]} 5. Bb5 {[%clk 0:04:44.9]} 5...
Bg4 {[%clk 0:04:52.8]} 6. O-O {[%clk 0:04:43.1]} 6... Nf6 {[%clk 0:04:51]} 7. h3
{[%clk 0:04:41.5]} 7... Bxf3 {[%clk 0:04:49.5]} 8. Qxf3 {[%clk 0:04:39.4]} 8...
e6 {[%clk 0:04:49.1]} 9. Bg5 {[%clk 0:04:34.6]} 9... Be7 {[%clk 0:04:47.9]} 10.
c4 {[%clk 0:04:25.9]} 10... O-O {[%clk 0:04:41.9]} 11. Nc3 {[%clk 0:04:22.2]}
11... Nxd4 {[%clk 0:04:37.3]} 12. Qd3 {[%clk 0:04:17.8]} 12... Nxb5 {[%clk
0:04:24]} 13. cxb5 {[%clk 0:04:16.1]} 13... Rc8 {[%clk 0:04:15.8]} 14. Rac1
{[%clk 0:03:44.6]} 14... Qd7 {[%clk 0:04:13.5]} 15. Rfe1 {[%clk 0:03:21.5]}
15... h6 {[%clk 0:04:09.7]} 16. Bh4 {[%clk 0:03:19.1]} 16... Rfd8 {[%clk
0:03:39.1]} 17. Qe2 {[%clk 0:03:02.1]} 17... Ne8 {[%clk 0:03:29]} 18. Bxe7
{[%clk 0:02:57.8]} 18... Qxe7 {[%clk 0:03:27.2]} 19. Rcd1 {[%clk 0:02:47.4]}
19... Qf6 {[%clk 0:02:42.5]} 20. Rd3 {[%clk 0:02:19.9]} 20... Nd6 {[%clk
0:02:30.1]} 21. Rf3 {[%clk 0:02:17.8]} 21... Qg6 {[%clk 0:02:14.1]} 22. a4
{[%clk 0:02:01]} 22... b6 {[%clk 0:02:10.3]} 23. Na2 {[%clk 0:01:51.8]} 23...
Rc7 {[%clk 0:01:46.3]} 24. Nb4 {[%clk 0:01:49.5]} 24... Rb8 {[%clk 0:01:42.8]}
25. Nc6 {[%clk 0:01:46.9]} 25... Rbc8 {[%clk 0:01:40.8]} 26. Rg3 {[%clk
0:01:25.4]} 26... Qh7 {[%clk 0:01:39.2]} 27. Qe5 {[%clk 0:00:24.9]} 27... Nc4
{[%clk 0:01:25]} 28. Qd4 {[%clk 0:00:15.9]} 28... Rf8 {[%clk 0:01:13.8]} 29. Rc3
{[%clk 0:00:08.8]} 29... Qg6 {[%clk 0:01:04.3]} 30. Rxc4 {[%clk 0:00:07.6]}
30... dxc4 {[%clk 0:01:02.6]} 31. Qxc4 {[%clk 0:00:06.7]} 31... Qf6 {[%clk
0:00:53.4]} 32. b3 {[%clk 0:00:05.4]} 32... Rfc8 {[%clk 0:00:48]} 33. Rc1 {[%clk
0:00:03.7]} 33... a6 {[%clk 0:00:45.9]} 34. Rc3 {[%clk 0:00:01.2]} 34... axb5
{[%clk 0:00:44.6]} 35. axb5 {[%clk 0:00:00.6]} 35... e5 {[%clk 0:00:41.3]} 0-1

[Event "Live Chess"]
[Site "Chess.com"]
[Date "2024.06.01"]
[Round "-"]
[White "road2gm5000"]
[Black "DarranAS"]
[Result "1-0"]
[WhiteElo "1060"]
[BlackElo "1453"]
[TimeControl "300"]
[EndTime "10:25:24 PDT"]
[Termination "road2gm5000 won on time"]

1. e4 {[%clk 0:04:59.2]} 1... e5 {[%clk 0:04:56.2]} 2. Nf3 {[%clk 0:04:57.5]}
2... Nc6 {[%clk 0:04:53.4]} 3. Bb5 {[%clk 0:04:56.8]} 3... a6 {[%clk 0:04:49.8]}
4. Bxc6 {[%clk 0:04:55.5]} 4... dxc6 {[%clk 0:04:47.1]} 5. Nc3 {[%clk
0:04:55.4]} 5... Qd6 {[%clk 0:04:32.2]} 6. d4 {[%clk 0:04:53.4]} 6... exd4
{[%clk 0:04:19.1]} 7. Qxd4 {[%clk 0:04:53.3]} 7... Qxd4 {[%clk 0:04:16.7]} 8.
Nxd4 {[%clk 0:04:53.2]} 8... Nf6 {[%clk 0:04:09.7]} 9. Bf4 {[%clk 0:04:48.9]}
9... Bd6 {[%clk 0:04:04.1]} 10. Bxd6 {[%clk 0:04:41.7]} 10... cxd6 {[%clk
0:04:02.9]} 11. f3 {[%clk 0:04:41.6]} 11... O-O {[%clk 0:03:58.8]} 12. O-O-O
{[%clk 0:04:40.1]} 12... d5 {[%clk 0:03:35.7]} 13. exd5 {[%clk 0:04:37.5]} 13...
cxd5 {[%clk 0:03:25.2]} 14. Rhe1 {[%clk 0:04:32.6]} 14... Bd7 {[%clk 0:03:18.8]}
15. Nb3 {[%clk 0:04:30.2]} 15... Bc6 {[%clk 0:03:07.5]} 16. Nd4 {[%clk 0:04:29]}
16... Rad8 {[%clk 0:03:03.2]} 17. Nxc6 {[%clk 0:04:27.8]} 17... bxc6 {[%clk
0:03:01.3]} 18. Re7 {[%clk 0:04:26.3]} 18... Rd7 {[%clk 0:02:53.9]} 19. Rde1
{[%clk 0:04:24.3]} 19... Rxe7 {[%clk 0:02:48.1]} 20. Rxe7 {[%clk 0:04:23.5]}
20... Re8 {[%clk 0:02:46.6]} 21. Rxe8+ {[%clk 0:04:22.1]} 21... Nxe8 {[%clk
0:02:45.9]} 22. Kd2 {[%clk 0:04:21.2]} 22... f5 {[%clk 0:02:33.9]} 23. Kd3
{[%clk 0:04:20.2]} 23... Kf7 {[%clk 0:02:32.1]} 24. Kd4 {[%clk 0:04:19.8]} 24...
Ke6 {[%clk 0:02:26.1]} 25. Kc5 {[%clk 0:04:19.3]} 25... Kd7 {[%clk 0:02:23.2]}
26. Na4 {[%clk 0:04:18.5]} 26... Nd6 {[%clk 0:01:54.3]} 27. Nb6+ {[%clk
0:04:16]} 27... Kc7 {[%clk 0:01:52.4]} 28. Na8+ {[%clk 0:04:13.4]} 28... Kd7
{[%clk 0:01:42.4]} 29. Kb6 {[%clk 0:04:12.2]} 29... Nb5 {[%clk 0:01:29.8]} 30.
Kxa6 {[%clk 0:04:07.6]} 30... Nd4 {[%clk 0:01:25.9]} 31. Nb6+ {[%clk 0:04:04.8]}
31... Kd6 {[%clk 0:01:17.6]} 32. c3 {[%clk 0:04:03]} 32... Ne2 {[%clk
0:01:10.8]} 33. Ka5 {[%clk 0:03:59.7]} 33... Nf4 {[%clk 0:01:06.9]} 34. g3
{[%clk 0:03:57.9]} 34... Nd3 {[%clk 0:00:59.5]} 35. Na4 {[%clk 0:03:56.8]} 35...
Nc1 {[%clk 0:00:49.6]} 36. a3 {[%clk 0:03:53.1]} 36... Ne2 {[%clk 0:00:44.9]}
37. Kb4 {[%clk 0:03:51.1]} 37... Ng1 {[%clk 0:00:41.7]} 38. f4 {[%clk
0:03:49.5]} 38... Nf3 {[%clk 0:00:36.3]} 39. h4 {[%clk 0:03:48.6]} 39... Ng1
{[%clk 0:00:34.9]} 40. c4 {[%clk 0:03:43.2]} 40... Ne2 {[%clk 0:00:31.3]} 41.
cxd5 {[%clk 0:03:41]} 41... cxd5 {[%clk 0:00:29.2]} 42. Nc3 {[%clk 0:03:37.8]}
42... Nxg3 {[%clk 0:00:27.2]} 43. Ka4 {[%clk 0:03:37.2]} 43... Ne4 {[%clk
0:00:20.9]} 44. Ne2 {[%clk 0:03:33.3]} 44... Nf6 {[%clk 0:00:16.3]} 45. b4
{[%clk 0:03:32.5]} 45... Nd7 {[%clk 0:00:14.4]} 46. b5 {[%clk 0:03:32]} 46...
Kc5 {[%clk 0:00:09.8]} 47. Ka5 {[%clk 0:03:26.9]} 47... Nb6 {[%clk 0:00:08.7]}
48. a4 {[%clk 0:03:24.6]} 48... g6 {[%clk 0:00:06.9]} 49. Ka6 {[%clk 0:03:22.7]}
49... h6 {[%clk 0:00:05.6]} 50. a5 {[%clk 0:03:22.2]} 50... Na4 {[%clk
0:00:03.4]} 51. b6 {[%clk 0:03:20.7]} 51... Nb2 {[%clk 0:00:01.6]} 52. b7 {[%clk
0:03:19.4]} 52... Nc4 {[%clk 0:00:00.4]} 53. b8=Q {[%clk 0:03:18]} 53... Nxa5
{[%clk 0:00:00.3]} 54. Qb5+ {[%clk 0:03:15.9]} 1-0